[Event "Early-Titled-Tuesday-Blitz-April-02-2024"]
[Site "Chess.com"]
[Date "2024.04.02"]
[Round "4"]
[White "Kirill_Klukin"]
[Black "Aslanov_Umid"]
[Result "1/2-1/2"]
[WhiteElo "2824"]
[BlackElo "2652"]
[TimeControl "180+1"]
[EndTime "8:41:19 PDT"]
[Termination "Game drawn - insufficient material"]

1. d4 {[%clk 0:03:00.9]} 1... d5 {[%clk 0:03:00.1]} 2. c4 {[%clk 0:03:00.3]}
2... e6 {[%clk 0:03:00.5]} 3. Nf3 {[%clk 0:03:00.6]} 3... Nf6 {[%clk 0:03:00.8]}
4. Nc3 {[%clk 0:03:00.9]} 4... Be7 {[%clk 0:03:00.9]} 5. Bg5 {[%clk 0:03:00.9]}
5... h6 {[%clk 0:03:00.9]} 6. Bh4 {[%clk 0:03:01.1]} 6... O-O {[%clk 0:03:01.3]}
7. e3 {[%clk 0:03:01.5]} 7... b6 {[%clk 0:03:01.8]} 8. cxd5 {[%clk 0:03:01.2]}
8... Nxd5 {[%clk 0:03:00.3]} 9. Bxe7 {[%clk 0:03:01.7]} 9... Qxe7 {[%clk
0:03:00.6]} 10. Nxd5 {[%clk 0:03:01]} 10... exd5 {[%clk 0:03:01.5]} 11. Be2
{[%clk 0:03:01.7]} 11... Be6 {[%clk 0:02:51.8]} 12. O-O {[%clk 0:03:01.1]} 12...
c5 {[%clk 0:02:52.3]} 13. dxc5 {[%clk 0:03:01.2]} 13... bxc5 {[%clk 0:02:53.2]}
14. Rc1 {[%clk 0:03:01.6]} 14... Rc8 {[%clk 0:02:51.1]} 15. Qa4 {[%clk 0:03:02]}
15... Kf8 {[%clk 0:02:34.6]} 16. Rfd1 {[%clk 0:02:57.9]} 16... Nd7 {[%clk
0:02:32.1]} 17. Qa5 {[%clk 0:02:56.2]} 17... c4 {[%clk 0:02:16.8]} 18. Nd4
{[%clk 0:02:49]} 18... Qc5 {[%clk 0:02:12.4]} 19. Qa6 {[%clk 0:02:41.4]} 19...
Qb6 {[%clk 0:02:07.2]} 20. Qa3+ {[%clk 0:02:40.1]} 20... Qc5 {[%clk 0:02:06.6]}
21. Qc3 {[%clk 0:02:40.4]} 21... Nf6 {[%clk 0:02:01.7]} 22. Bf3 {[%clk
0:02:39.4]} 22... Rab8 {[%clk 0:01:57.9]} 23. b3 {[%clk 0:02:39.6]} 23... Qb4
{[%clk 0:01:49.4]} 24. bxc4 {[%clk 0:02:32]} 24... Qxc3 {[%clk 0:01:40.4]} 25.
Rxc3 {[%clk 0:02:31.9]} 25... Rxc4 {[%clk 0:01:40]} 26. Ra3 {[%clk 0:02:24.2]}
26... Rc7 {[%clk 0:01:32.2]} 27. h3 {[%clk 0:02:23]} 27... Ke7 {[%clk
0:01:06.2]} 28. Rdd3 {[%clk 0:02:01.4]} 28... Ne4 {[%clk 0:01:00.8]} 29. Bxe4
{[%clk 0:01:42.2]} 29... dxe4 {[%clk 0:01:01.7]} 30. Rdc3 {[%clk 0:01:42.9]}
30... Rxc3 {[%clk 0:00:57.7]} 31. Rxc3 {[%clk 0:01:43.8]} 31... Rb1+ {[%clk
0:00:58.1]} 32. Kh2 {[%clk 0:01:44.4]} 32... Bxa2 {[%clk 0:00:58.7]} 33. Rc7+
{[%clk 0:01:44.9]} 33... Kf6 {[%clk 0:00:56.4]} 34. Rxa7 {[%clk 0:01:45]} 34...
Be6 {[%clk 0:00:49.3]} 35. Kg3 {[%clk 0:01:35.8]} 35... g5 {[%clk 0:00:45.1]}
36. Ra4 {[%clk 0:01:35.7]} 36... Ke5 {[%clk 0:00:29.8]} 37. Ra5+ {[%clk
0:01:34.1]} 37... Kf6 {[%clk 0:00:29.8]} 38. h4 {[%clk 0:01:34.8]} 38... gxh4+
{[%clk 0:00:26.9]} 39. Kxh4 {[%clk 0:01:33.5]} 39... Rh1+ {[%clk 0:00:22.6]} 40.
Kg3 {[%clk 0:01:33.8]} 40... h5 {[%clk 0:00:18.8]} 41. Kf4 {[%clk 0:00:52.3]}
41... Rh4+ {[%clk 0:00:18.3]} 42. Kg3 {[%clk 0:00:50.7]} 42... Rh1 {[%clk
0:00:18.6]} 43. Ra8 {[%clk 0:00:30.9]} 43... Ke5 {[%clk 0:00:13.4]} 44. Rh8
{[%clk 0:00:25.7]} 44... Kf6 {[%clk 0:00:09.2]} 45. Kf4 {[%clk 0:00:14.1]} 45...
Rh4+ {[%clk 0:00:09.8]} 46. Kg3 {[%clk 0:00:14.6]} 46... Rh1 {[%clk 0:00:10.7]}
47. Nxe6 {[%clk 0:00:09.1]} 47... fxe6 {[%clk 0:00:10.8]} 48. Kf4 {[%clk
0:00:08.5]} 48... Rh4+ {[%clk 0:00:11.5]} 49. Kg3 {[%clk 0:00:08.9]} 49... Rh1
{[%clk 0:00:12.4]} 50. Rg8 {[%clk 0:00:05.1]} 50... Kf5 {[%clk 0:00:12.1]} 51.
Rf8+ {[%clk 0:00:05.4]} 51... Kg5 {[%clk 0:00:12.5]} 52. Rg8+ {[%clk 0:00:05.8]}
52... Kf5 {[%clk 0:00:13.2]} 53. f3 {[%clk 0:00:03.2]} 53... h4+ {[%clk
0:00:11.5]} 54. Kf2 {[%clk 0:00:03]} 54... exf3 {[%clk 0:00:11.2]} 55. Kxf3
{[%clk 0:00:03.6]} 55... h3 {[%clk 0:00:11.8]} 56. g4+ {[%clk 0:00:03.1]} 56...
Ke5 {[%clk 0:00:10.4]} 57. Rh8 {[%clk 0:00:03.8]} 57... h2 {[%clk 0:00:07.9]}
58. Rh5+ {[%clk 0:00:04.5]} 58... Kf6 {[%clk 0:00:07.7]} 59. Kg2 {[%clk
0:00:05.3]} 59... Re1 {[%clk 0:00:07.8]} 60. Rxh2 {[%clk 0:00:05.2]} 60... Rxe3
{[%clk 0:00:08.4]} 61. Rh5 {[%clk 0:00:05.6]} 61... Kg6 {[%clk 0:00:07.7]} 62.
Kf2 {[%clk 0:00:05.8]} 62... Ra3 {[%clk 0:00:08.2]} 63. Rb5 {[%clk 0:00:05.5]}
63... Rc3 {[%clk 0:00:07.4]} 64. Kg2 {[%clk 0:00:05.9]} 64... Ra3 {[%clk
0:00:07.4]} 65. Re5 {[%clk 0:00:06.5]} 65... Kf6 {[%clk 0:00:07.3]} 66. Rc5
{[%clk 0:00:07.2]} 66... Kg6 {[%clk 0:00:07.9]} 67. Kf2 {[%clk 0:00:07.3]} 67...
Kf6 {[%clk 0:00:08.5]} 68. Rb5 {[%clk 0:00:07.1]} 68... Rc3 {[%clk 0:00:07.9]}
69. Rh5 {[%clk 0:00:07.3]} 69... Kg6 {[%clk 0:00:08.2]} 70. Kg2 {[%clk
0:00:06.6]} 70... Ra3 {[%clk 0:00:08.6]} 71. Rh8 {[%clk 0:00:07]} 71... Kg5
{[%clk 0:00:08.5]} 72. Rg8+ {[%clk 0:00:05.9]} 72... Kf4 {[%clk 0:00:08.9]} 73.
g5 {[%clk 0:00:06.7]} 73... Ra5 {[%clk 0:00:07.6]} 74. g6 {[%clk 0:00:06.7]}
74... Rg5+ {[%clk 0:00:07.9]} 75. Kf2 {[%clk 0:00:07.4]} 75... Kf5 {[%clk
0:00:08.5]} 76. g7 {[%clk 0:00:07.2]} 76... Kf6 {[%clk 0:00:08.7]} 77. Ra8
{[%clk 0:00:04.9]} 77... Kxg7 {[%clk 0:00:08.9]} 78. Kf3 {[%clk 0:00:05.1]}
78... Kf6 {[%clk 0:00:09.1]} 79. Ra4 {[%clk 0:00:03.5]} 79... Rb5 {[%clk
0:00:09.3]} 80. Ke3 {[%clk 0:00:03.8]} 80... Rh5 {[%clk 0:00:09.1]} 81. Kf3
{[%clk 0:00:04]} 81... Rh3+ {[%clk 0:00:09.6]} 82. Ke2 {[%clk 0:00:04.5]} 82...
Kf5 {[%clk 0:00:09.3]} 83. Kf2 {[%clk 0:00:03.9]} 83... e5 {[%clk 0:00:08.6]}
84. Ke2 {[%clk 0:00:04.3]} 84... Rg3 {[%clk 0:00:08.3]} 85. Kf2 {[%clk
0:00:04.7]} 85... Rb3 {[%clk 0:00:09]} 86. Ke2 {[%clk 0:00:05.1]} 86... Rb2+
{[%clk 0:00:09.2]} 87. Ke3 {[%clk 0:00:05.5]} 87... Rh2 {[%clk 0:00:09.9]} 88.
Kf3 {[%clk 0:00:05.1]} 88... Rh3+ {[%clk 0:00:10.4]} 89. Ke2 {[%clk 0:00:05.6]}
89... Rg3 {[%clk 0:00:09.1]} 90. Kf2 {[%clk 0:00:05.8]} 90... Rg4 {[%clk
0:00:09.7]} 91. Rxg4 {[%clk 0:00:05.7]} 91... Kxg4 {[%clk 0:00:09.3]} 92. Ke3
{[%clk 0:00:06.5]} 92... Kf5 {[%clk 0:00:10.1]} 93. Kf3 {[%clk 0:00:07.2]} 93...
e4+ {[%clk 0:00:11]} 94. Ke3 {[%clk 0:00:07.8]} 94... Ke5 {[%clk 0:00:11.9]} 95.
Ke2 {[%clk 0:00:08]} 95... Kf4 {[%clk 0:00:12.8]} 96. Kf2 {[%clk 0:00:08.4]}
96... e3+ {[%clk 0:00:13.7]} 97. Ke2 {[%clk 0:00:08.9]} 97... Ke4 {[%clk
0:00:14.6]} 98. Ke1 {[%clk 0:00:09.6]} 98... Kf4 {[%clk 0:00:14.1]} 99. Ke2
{[%clk 0:00:09.9]} 99... Ke4 {[%clk 0:00:14.8]} 100. Ke1 {[%clk 0:00:10.6]}
100... Kd4 {[%clk 0:00:15.7]} 101. Ke2 {[%clk 0:00:10.9]} 101... Kd5 {[%clk
0:00:16]} 102. Kxe3 {[%clk 0:00:11.2]} 1/2-1/2

[Event "Early-Titled-Tuesday-Blitz-April-02-2024"]
[Site "Chess.com"]
[Date "2024.04.02"]
[Round "4"]
[White "Firouzja2003"]
[Black "MetiForce"]
[Result "0-1"]
[WhiteElo "3102"]
[BlackElo "2889"]
[TimeControl "180+1"]
[EndTime "8:41:31 PDT"]
[Termination "MetiForce won by resignation"]

1. e4 {[%clk 0:03:00.9]} 1... e5 {[%clk 0:02:59.6]} 2. Nf3 {[%clk 0:03:00.8]}
2... Nc6 {[%clk 0:03:00.2]} 3. Bb5 {[%clk 0:02:58.1]} 3... a6 {[%clk 0:03:00.1]}
4. Ba4 {[%clk 0:02:58.8]} 4... Nf6 {[%clk 0:02:58.8]} 5. Bxc6 {[%clk 0:02:59.4]}
5... dxc6 {[%clk 0:02:57.1]} 6. d3 {[%clk 0:03:00.3]} 6... Nd7 {[%clk
0:02:54.8]} 7. Nc3 {[%clk 0:02:56.8]} 7... Bd6 {[%clk 0:02:54.6]} 8. Be3 {[%clk
0:02:56.6]} 8... Qe7 {[%clk 0:02:52.3]} 9. h3 {[%clk 0:02:55.1]} 9... Nf8 {[%clk
0:02:52.2]} 10. Qe2 {[%clk 0:02:53.3]} 10... Ne6 {[%clk 0:02:47.3]} 11. O-O-O
{[%clk 0:02:46.6]} 11... O-O {[%clk 0:02:34]} 12. h4 {[%clk 0:02:37.8]} 12... b5
{[%clk 0:02:34.2]} 13. Qd2 {[%clk 0:02:28.1]} 13... c5 {[%clk 0:02:12.4]} 14. h5
{[%clk 0:02:24.7]} 14... Nd4 {[%clk 0:02:10.3]} 15. Nd5 {[%clk 0:02:18.6]} 15...
Qd8 {[%clk 0:02:07.2]} 16. Kb1 {[%clk 0:02:00.7]} 16... c6 {[%clk 0:02:01.4]}
17. Nc3 {[%clk 0:02:00.9]} 17... Bg4 {[%clk 0:01:53]} 18. Ne2 {[%clk 0:01:54.9]}
18... b4 {[%clk 0:01:44]} 19. Bxd4 {[%clk 0:01:32.8]} 19... cxd4 {[%clk
0:01:44.9]} 20. Ng3 {[%clk 0:01:33.4]} 20... a5 {[%clk 0:01:30.1]} 21. Nf5
{[%clk 0:01:33.3]} 21... a4 {[%clk 0:01:23.8]} 22. Rh4 {[%clk 0:00:57.9]} 22...
Bxf5 {[%clk 0:01:04.9]} 23. exf5 {[%clk 0:00:58.8]} 23... b3 {[%clk 0:01:02.7]}
24. Rg4 {[%clk 0:00:59]} 24... Kh8 {[%clk 0:00:20.4]} 25. Qg5 {[%clk 0:00:58.7]}
25... Qxg5 {[%clk 0:00:16.9]} 26. Nxg5 {[%clk 0:00:59.6]} 26... bxa2+ {[%clk
0:00:11.2]} 27. Kxa2 {[%clk 0:00:59.8]} 27... a3 {[%clk 0:00:11.3]} 28. b3
{[%clk 0:00:58.3]} 28... h6 {[%clk 0:00:10]} 29. Ne4 {[%clk 0:00:58.3]} 29...
Bb4 {[%clk 0:00:10.7]} 30. Rh1 {[%clk 0:00:51.6]} 30... f6 {[%clk 0:00:11]} 31.
Rg6 {[%clk 0:00:46.8]} 31... Ra7 {[%clk 0:00:11.2]} 32. Rg3 {[%clk 0:00:44.7]}
32... Rd7 {[%clk 0:00:11.2]} 33. Rf1 {[%clk 0:00:44.7]} 33... Re8 {[%clk
0:00:11.2]} 34. Rh3 {[%clk 0:00:44]} 34... Kh7 {[%clk 0:00:11.3]} 35. f3 {[%clk
0:00:43.4]} 35... Rd5 {[%clk 0:00:10.7]} 36. Rf2 {[%clk 0:00:43.7]} 36... Rd7
{[%clk 0:00:11.2]} 37. Re2 {[%clk 0:00:44.2]} 37... Rd5 {[%clk 0:00:11.7]} 38.
Rh1 {[%clk 0:00:44.6]} 38... Re7 {[%clk 0:00:10.4]} 39. Rf1 {[%clk 0:00:43.4]}
39... Kg8 {[%clk 0:00:10.7]} 40. g3 {[%clk 0:00:43]} 40... Kf7 {[%clk 0:00:11]}
41. Rb1 {[%clk 0:00:38.9]} 41... Rd8 {[%clk 0:00:11.3]} 42. Nd2 {[%clk
0:00:37.8]} 42... Rd5 {[%clk 0:00:10.8]} 43. Nc4 {[%clk 0:00:38.2]} 43... Ra7
{[%clk 0:00:11.2]} 44. Re4 {[%clk 0:00:38.1]} 44... Rb5 {[%clk 0:00:08.2]} 45.
Rf1 {[%clk 0:00:38]} 45... Rd5 {[%clk 0:00:08.1]} 46. Rf2 {[%clk 0:00:38.4]}
46... Re7 {[%clk 0:00:07.4]} 47. Rfe2 {[%clk 0:00:38.8]} 47... Rdd7 {[%clk
0:00:06.6]} 48. g4 {[%clk 0:00:38.6]} 48... Rd5 {[%clk 0:00:06.3]} 49. Nd2
{[%clk 0:00:29.8]} 49... Rdd7 {[%clk 0:00:06.4]} 50. Nf1 {[%clk 0:00:30.1]}
50... Ra7 {[%clk 0:00:06]} 51. Ng3 {[%clk 0:00:29.4]} 51... Rad7 {[%clk
0:00:06.5]} 52. Nh1 {[%clk 0:00:29.3]} 52... Rd5 {[%clk 0:00:06.8]} 53. Nf2
{[%clk 0:00:29.8]} 53... Rdd7 {[%clk 0:00:07.1]} 54. Nh3 {[%clk 0:00:29.7]}
54... Ra7 {[%clk 0:00:07.2]} 55. f4 {[%clk 0:00:28.8]} 55... exf4 {[%clk
0:00:08.1]} 56. Nxf4 {[%clk 0:00:29.7]} 56... Rxe4 {[%clk 0:00:05.9]} 57. Rxe4
{[%clk 0:00:30.1]} 57... c5 {[%clk 0:00:05.6]} 58. Ng6 {[%clk 0:00:23.9]} 58...
Rd7 {[%clk 0:00:05.6]} 59. Re6 {[%clk 0:00:24.3]} 59... Rc7 {[%clk 0:00:04.9]}
60. Ra6 {[%clk 0:00:21.7]} 60... Ke8 {[%clk 0:00:04.9]} 61. Ra8+ {[%clk
0:00:20.6]} 61... Kd7 {[%clk 0:00:05.4]} 62. Ra6 {[%clk 0:00:20.6]} 62... Kc8
{[%clk 0:00:04.3]} 63. Nf8 {[%clk 0:00:17.9]} 63... Re7 {[%clk 0:00:04.2]} 64.
Ne6 {[%clk 0:00:17.8]} 64... Kb7 {[%clk 0:00:04.9]} 65. Rd6 {[%clk 0:00:17]}
65... Ka7 {[%clk 0:00:03.9]} 66. Rd8 {[%clk 0:00:17]} 66... Kb7 {[%clk
0:00:03.9]} 67. Rg8 {[%clk 0:00:17.5]} 67... Kc6 {[%clk 0:00:04.2]} 68. Rd8
{[%clk 0:00:06.1]} 68... Ra7 {[%clk 0:00:04.4]} 69. Rg8 {[%clk 0:00:05.1]} 69...
Re7 {[%clk 0:00:04.9]} 70. Rxg7 {[%clk 0:00:04.4]} 70... Rxg7 {[%clk 0:00:05.3]}
71. Nxg7 {[%clk 0:00:05.3]} 71... Kd6 {[%clk 0:00:06.2]} 72. Kb1 {[%clk
0:00:05.4]} 72... Ke5 {[%clk 0:00:05.3]} 73. Ne8 {[%clk 0:00:05.9]} 73... Bc3
{[%clk 0:00:03.3]} 74. Ka2 {[%clk 0:00:05.9]} 74... Bb4 {[%clk 0:00:04]} 75. Ka1
{[%clk 0:00:06.6]} 75... Bc3+ {[%clk 0:00:04.1]} 76. Kb1 {[%clk 0:00:07.3]}
76... Bb4 {[%clk 0:00:05]} 77. Ka2 {[%clk 0:00:07.8]} 77... Kf4 {[%clk
0:00:03.8]} 78. Nxf6 {[%clk 0:00:08.2]} 78... Kg5 {[%clk 0:00:02.5]} 79. Ne4+
{[%clk 0:00:07.2]} 79... Kxg4 {[%clk 0:00:03.4]} 80. f6 {[%clk 0:00:07.7]} 80...
Kxh5 {[%clk 0:00:04.1]} 81. f7 {[%clk 0:00:06.8]} 81... c4 {[%clk 0:00:04.5]}
82. bxc4 {[%clk 0:00:06]} 82... Kg6 {[%clk 0:00:05.2]} 83. c5 {[%clk 0:00:05.6]}
83... Kxf7 {[%clk 0:00:05.6]} 84. Kb3 {[%clk 0:00:03.8]} 84... Ke6 {[%clk
0:00:04.3]} 85. c4 {[%clk 0:00:02.4]} 85... dxc3 {[%clk 0:00:03.5]} 86. d4
{[%clk 0:00:02.6]} 86... Kd5 {[%clk 0:00:03.4]} 87. Nf6+ {[%clk 0:00:02.9]}
87... Kc6 {[%clk 0:00:03.6]} 88. Ne4 {[%clk 0:00:01.8]} 88... Kd5 {[%clk
0:00:03.8]} 89. Nf6+ {[%clk 0:00:02.3]} 89... Kxd4 {[%clk 0:00:04.4]} 90. c6
{[%clk 0:00:02.6]} 90... Bd6 {[%clk 0:00:05.1]} 91. Ne8 {[%clk 0:00:02.3]} 91...
Be5 {[%clk 0:00:05.3]} 92. c7 {[%clk 0:00:01.4]} 92... Bxc7 {[%clk 0:00:05.7]}
93. Nxc7 {[%clk 0:00:01.6]} 93... Kd3 {[%clk 0:00:06.6]} 94. Nd5 {[%clk
0:00:02.3]} 94... a2 {[%clk 0:00:04.6]} 95. Nb4+ {[%clk 0:00:02.4]} 95... Kd2
{[%clk 0:00:04.8]} 96. Nxa2 {[%clk 0:00:02.2]} 96... c2 {[%clk 0:00:05.1]} 97.
Kb2 {[%clk 0:00:02.7]} 97... h5 {[%clk 0:00:05.6]} 98. Nc1 {[%clk 0:00:03.1]}
98... h4 {[%clk 0:00:06.3]} 0-1

[Event "Early-Titled-Tuesday-Blitz-April-02-2024"]
[Site "Chess.com"]
[Date "2024.04.02"]
[Round "4"]
[White "djokovic74"]
[Black "Sanan_Sjugirov"]
[Result "1/2-1/2"]
[WhiteElo "2759"]
[BlackElo "2983"]
[TimeControl "180+1"]
[EndTime "8:42:13 PDT"]
[Termination "Game drawn - insufficient material"]

1. e4 {[%clk 0:03:00.9]} 1... c5 {[%clk 0:02:59.7]} 2. Nf3 {[%clk 0:03:01.1]}
2... d6 {[%clk 0:03:00.2]} 3. d4 {[%clk 0:03:01.5]} 3... cxd4 {[%clk 0:03:01.1]}
4. Nxd4 {[%clk 0:03:02.4]} 4... Nf6 {[%clk 0:03:01.5]} 5. Nc3 {[%clk 0:03:03.1]}
5... a6 {[%clk 0:03:02.1]} 6. Be2 {[%clk 0:03:03.6]} 6... e5 {[%clk 0:03:01.9]}
7. Nb3 {[%clk 0:03:03.9]} 7... Be7 {[%clk 0:03:02.4]} 8. O-O {[%clk 0:03:03]}
8... O-O {[%clk 0:03:02.3]} 9. Kh1 {[%clk 0:03:03.7]} 9... Nc6 {[%clk
0:02:55.9]} 10. f4 {[%clk 0:03:02.9]} 10... b5 {[%clk 0:02:43.2]} 11. a4 {[%clk
0:03:02]} 11... b4 {[%clk 0:02:41.4]} 12. Nd5 {[%clk 0:03:02.1]} 12... Bb7
{[%clk 0:02:39]} 13. Be3 {[%clk 0:02:53.1]} 13... Nxd5 {[%clk 0:02:34.7]} 14.
exd5 {[%clk 0:02:38.5]} 14... Na5 {[%clk 0:02:34.4]} 15. Nxa5 {[%clk 0:02:24.4]}
15... Qxa5 {[%clk 0:02:34.1]} 16. fxe5 {[%clk 0:01:48.3]} 16... Bxd5 {[%clk
0:02:00.8]} 17. exd6 {[%clk 0:01:39.2]} 17... Bxd6 {[%clk 0:02:01.7]} 18. Bf3
{[%clk 0:01:19.8]} 18... Bxf3 {[%clk 0:01:59.4]} 19. Qxd6 {[%clk 0:01:12]} 19...
Be4 {[%clk 0:01:50.9]} 20. Rf2 {[%clk 0:00:49.9]} 20... Rfe8 {[%clk 0:01:44.8]}
21. Bb6 {[%clk 0:00:44.1]} 21... Qg5 {[%clk 0:01:10]} 22. Qxb4 {[%clk
0:00:35.3]} 22... Re6 {[%clk 0:01:09.4]} 23. Qd2 {[%clk 0:00:22.9]} 23... Qg6
{[%clk 0:00:59.6]} 24. a5 {[%clk 0:00:15.1]} 24... h5 {[%clk 0:00:59]} 25. Raf1
{[%clk 0:00:12.2]} 25... f5 {[%clk 0:00:46.6]} 26. Qf4 {[%clk 0:00:10.5]} 26...
Rae8 {[%clk 0:00:43.4]} 27. h3 {[%clk 0:00:08.2]} 27... Bc6 {[%clk 0:00:33.3]}
28. Qxf5 {[%clk 0:00:07.3]} 28... Qh6 {[%clk 0:00:24.6]} 29. Qf7+ {[%clk
0:00:06.5]} 29... Kh7 {[%clk 0:00:25]} 30. Qf4 {[%clk 0:00:04.8]} 30... Rg6
{[%clk 0:00:16.4]} 31. Qxh6+ {[%clk 0:00:04.5]} 31... Kxh6 {[%clk 0:00:17.3]}
32. Kh2 {[%clk 0:00:05.1]} 32... h4 {[%clk 0:00:17.2]} 33. c3 {[%clk 0:00:04.2]}
33... Re5 {[%clk 0:00:17.2]} 34. Bd4 {[%clk 0:00:04.6]} 34... Re4 {[%clk
0:00:17.4]} 35. b4 {[%clk 0:00:03.3]} 35... Kh7 {[%clk 0:00:16.8]} 36. Rg1
{[%clk 0:00:02.7]} 36... Ree6 {[%clk 0:00:16.5]} 37. g3 {[%clk 0:00:03]} 37...
Rh6 {[%clk 0:00:05.9]} 38. gxh4 {[%clk 0:00:03.2]} 38... Re7 {[%clk 0:00:06.5]}
39. Rg4 {[%clk 0:00:02.9]} 39... Bd7 {[%clk 0:00:06.8]} 40. Rgf4 {[%clk
0:00:03.1]} 40... Be8 {[%clk 0:00:06.1]} 41. Kg3 {[%clk 0:00:02.7]} 41... Rg6+
{[%clk 0:00:06.2]} 42. Rg4 {[%clk 0:00:02.7]} 42... Rge6 {[%clk 0:00:05.9]} 43.
Rgf4 {[%clk 0:00:02.1]} 43... Rg6+ {[%clk 0:00:05.9]} 44. Kh2 {[%clk 0:00:02.8]}
44... Bc6 {[%clk 0:00:05.8]} 45. Rg4 {[%clk 0:00:01.5]} 45... Rh6 {[%clk
0:00:05.9]} 46. h5 {[%clk 0:00:01.8]} 46... Rxh5 {[%clk 0:00:05.9]} 47. Kg3
{[%clk 0:00:02.7]} 47... g5 {[%clk 0:00:04.7]} 48. Rf5 {[%clk 0:00:02.3]} 48...
Bd7 {[%clk 0:00:02.7]} 49. Rgxg5 {[%clk 0:00:02.8]} 49... Rh6 {[%clk 0:00:02.2]}
50. Re5 {[%clk 0:00:03.1]} 50... Rxh3+ {[%clk 0:00:02.4]} 51. Kf2 {[%clk
0:00:01.8]} 51... Rf7+ {[%clk 0:00:03.3]} 52. Ke2 {[%clk 0:00:02.4]} 52... Bb5+
{[%clk 0:00:03.7]} 53. Kd2 {[%clk 0:00:02.5]} 53... Rd3+ {[%clk 0:00:03.2]} 54.
Kc2 {[%clk 0:00:02.7]} 54... Bc4 {[%clk 0:00:03.8]} 55. Rh5+ {[%clk 0:00:02.7]}
55... Kg8 {[%clk 0:00:04]} 56. Reg5+ {[%clk 0:00:03.4]} 56... Kf8 {[%clk
0:00:04.6]} 57. Bc5+ {[%clk 0:00:03.6]} 57... Ke8 {[%clk 0:00:04.7]} 58. Rh8+
{[%clk 0:00:03.7]} 58... Kd7 {[%clk 0:00:05.2]} 59. Rh4 {[%clk 0:00:03.1]} 59...
Bb5 {[%clk 0:00:04.8]} 60. Rd4+ {[%clk 0:00:03.1]} 60... Rxd4 {[%clk 0:00:04.8]}
61. Bxd4 {[%clk 0:00:04]} 61... Rf3 {[%clk 0:00:04.9]} 62. Rd5+ {[%clk
0:00:03.8]} 62... Ke6 {[%clk 0:00:04.8]} 63. Re5+ {[%clk 0:00:04.3]} 63... Kd6
{[%clk 0:00:05.3]} 64. Rg5 {[%clk 0:00:04.3]} 64... Bc4 {[%clk 0:00:05.2]} 65.
Rc5 {[%clk 0:00:03.9]} 65... Bb5 {[%clk 0:00:05]} 66. Kd2 {[%clk 0:00:04.3]}
66... Rd3+ {[%clk 0:00:04.9]} 67. Ke1 {[%clk 0:00:04]} 67... Rh3 {[%clk
0:00:05.8]} 68. Kf2 {[%clk 0:00:04.3]} 68... Rd3 {[%clk 0:00:05.7]} 69. Rg5
{[%clk 0:00:02.9]} 69... Bc4 {[%clk 0:00:05.6]} 70. Bc5+ {[%clk 0:00:03.2]}
70... Kc6 {[%clk 0:00:05.3]} 71. Bd4 {[%clk 0:00:04.1]} 71... Kd6 {[%clk
0:00:05.1]} 72. Ke1 {[%clk 0:00:03.3]} 72... Rh3 {[%clk 0:00:04.5]} 73. Kd2
{[%clk 0:00:03.1]} 73... Rd3+ {[%clk 0:00:05]} 74. Kc2 {[%clk 0:00:03.4]} 74...
Rf3 {[%clk 0:00:05.5]} 75. Rc5 {[%clk 0:00:03.4]} 75... Bb5 {[%clk 0:00:05.9]}
76. c4 {[%clk 0:00:03.6]} 76... Ba4+ {[%clk 0:00:05.8]} 77. Kd2 {[%clk 0:00:04]}
77... Rb3 {[%clk 0:00:05.8]} 78. Be5+ {[%clk 0:00:03]} 78... Ke6 {[%clk
0:00:05.7]} 79. Bc3 {[%clk 0:00:03.8]} 79... Ra3 {[%clk 0:00:05]} 80. Re5+
{[%clk 0:00:03.7]} 80... Kd6 {[%clk 0:00:04.9]} 81. Rg5 {[%clk 0:00:02]} 81...
Bb3 {[%clk 0:00:02.1]} 82. Rg6+ {[%clk 0:00:02.1]} 82... Kd7 {[%clk 0:00:02.3]}
83. Rxa6 {[%clk 0:00:01.8]} 83... Bxc4 {[%clk 0:00:02.6]} 84. Rb6 {[%clk
0:00:02.7]} 84... Kc7 {[%clk 0:00:01.8]} 85. Be5+ {[%clk 0:00:02.8]} 85... Kd7
{[%clk 0:00:01.9]} 86. Rd6+ {[%clk 0:00:02.9]} 86... Ke7 {[%clk 0:00:01.9]} 87.
Rb6 {[%clk 0:00:03.4]} 87... Kd7 {[%clk 0:00:01.8]} 88. Bc3 {[%clk 0:00:03.4]}
88... Rb3 {[%clk 0:00:01.6]} 89. Rb7+ {[%clk 0:00:03.2]} 89... Kc6 {[%clk
0:00:01.7]} 90. Rb6+ {[%clk 0:00:04.1]} 90... Kd5 {[%clk 0:00:02.1]} 91. Rh6
{[%clk 0:00:05]} 91... Ra3 {[%clk 0:00:02.3]} 92. Rh5+ {[%clk 0:00:05.4]} 92...
Kd6 {[%clk 0:00:02.1]} 93. Bd4 {[%clk 0:00:04.7]} 93... Rd3+ {[%clk 0:00:01.7]}
94. Kc2 {[%clk 0:00:05.4]} 94... Rxd4 {[%clk 0:00:02.6]} 95. Kc3 {[%clk
0:00:06.2]} 95... Rg4 {[%clk 0:00:02.9]} 96. Rh6+ {[%clk 0:00:06]} 96... Kc7
{[%clk 0:00:02.9]} 97. Rh5 {[%clk 0:00:03.7]} 97... Ba6 {[%clk 0:00:02.3]} 98.
b5 {[%clk 0:00:04]} 98... Bc8 {[%clk 0:00:02.9]} 99. Rh7+ {[%clk 0:00:03.9]}
99... Kb8 {[%clk 0:00:03]} 100. Kb3 {[%clk 0:00:03.2]} 100... Be6+ {[%clk
0:00:02.6]} 101. Ka3 {[%clk 0:00:03.7]} 101... Rd4 {[%clk 0:00:02.4]} 102. Rh8+
{[%clk 0:00:03.2]} 102... Kb7 {[%clk 0:00:02.2]} 103. Rh7+ {[%clk 0:00:03.9]}
103... Bd7 {[%clk 0:00:02.4]} 104. Kb3 {[%clk 0:00:04.6]} 104... Kc7 {[%clk
0:00:02.4]} 105. Kc3 {[%clk 0:00:04.8]} 105... Ra4 {[%clk 0:00:02.7]} 106. b6+
{[%clk 0:00:02.9]} 106... Kc6 {[%clk 0:00:03]} 107. b7 {[%clk 0:00:03.4]} 107...
Kxb7 {[%clk 0:00:01.5]} 108. Rxd7+ {[%clk 0:00:03.6]} 108... Ka6 {[%clk
0:00:02.4]} 109. Rd5 {[%clk 0:00:03.4]} 109... Rxa5 {[%clk 0:00:02.5]} 110.
Rxa5+ {[%clk 0:00:04.1]} 110... Kxa5 {[%clk 0:00:03.4]} 1/2-1/2

[Event "Early-Titled-Tuesday-Blitz-April-02-2024"]
[Site "Chess.com"]
[Date "2024.04.02"]
[Round "5"]
[White "Aural1011"]
[Black "Slovineanu"]
[Result "0-1"]
[WhiteElo "1781"]
[BlackElo "2478"]
[TimeControl "180+1"]
[EndTime "8:51:38 PDT"]
[Termination "Slovineanu won by resignation"]

1. d4 {[%clk 0:03:00.9]} 1... Nf6 {[%clk 0:02:59.7]} 2. c4 {[%clk 0:03:01.1]}
2... e6 {[%clk 0:02:59.9]} 3. Nc3 {[%clk 0:03:01.4]} 3... d5 {[%clk 0:03:00.2]}
4. cxd5 {[%clk 0:03:00.4]} 4... Nxd5 {[%clk 0:03:00.4]} 5. e4 {[%clk 0:02:59.1]}
5... Nxc3 {[%clk 0:03:00.4]} 6. bxc3 {[%clk 0:03:00]} 6... c5 {[%clk 0:03:00.9]}
7. Nf3 {[%clk 0:02:59.9]} 7... cxd4 {[%clk 0:03:01]} 8. cxd4 {[%clk 0:03:00.8]}
8... Bb4+ {[%clk 0:03:01]} 9. Bd2 {[%clk 0:03:00.9]} 9... Bxd2+ {[%clk
0:03:01.2]} 10. Qxd2 {[%clk 0:03:01.8]} 10... O-O {[%clk 0:03:01.5]} 11. Bd3
{[%clk 0:02:54]} 11... Nc6 {[%clk 0:03:01]} 12. Bc2 {[%clk 0:02:37.9]} 12... Qa5
{[%clk 0:02:58.1]} 13. Qxa5 {[%clk 0:02:31]} 13... Nxa5 {[%clk 0:02:58.1]} 14.
O-O {[%clk 0:02:31.7]} 14... Bd7 {[%clk 0:02:57.4]} 15. Ne5 {[%clk 0:02:31.1]}
15... Rfd8 {[%clk 0:02:54.4]} 16. Rab1 {[%clk 0:02:23.8]} 16... Be8 {[%clk
0:02:50.2]} 17. Rfd1 {[%clk 0:02:19.4]} 17... f6 {[%clk 0:02:42.6]} 18. Nf3
{[%clk 0:02:18.5]} 18... Rac8 {[%clk 0:02:32.8]} 19. Bb3 {[%clk 0:02:18.1]}
19... Nxb3 {[%clk 0:02:30.4]} 20. Rxb3 {[%clk 0:02:16.7]} 20... b6 {[%clk
0:02:30.7]} 21. h3 {[%clk 0:02:08.5]} 21... Ba4 {[%clk 0:02:30.1]} 22. Rbd3
{[%clk 0:02:07.1]} 22... Bxd1 {[%clk 0:02:29.8]} 23. Rxd1 {[%clk 0:02:08]} 23...
Kf7 {[%clk 0:02:27.3]} 24. a4 {[%clk 0:01:56.6]} 24... Rc4 {[%clk 0:02:21.9]}
25. Ra1 {[%clk 0:01:51.4]} 25... Rdc8 {[%clk 0:02:17.3]} 26. Kh2 {[%clk
0:01:46.2]} 26... a5 {[%clk 0:02:13.3]} 27. Rb1 {[%clk 0:01:45.4]} 27... Rb4
{[%clk 0:02:13.4]} 0-1